bitfinex-derivatives/quotes_SOLF0:USTF0_20240829
["timestamp","ask_amount","ask_price","bid_price","bid_amount"]
[1724945851744,0.04361004,147.11,147.08,3.44991721]
[1724945852141,0.04361004,147.11,147.08,0.05181721]
[1724945853554,3.3978,147.1,147.08,0.05181721]
[1724945855242,3.398,147.09,147.08,0.05181721]
[1724945856243,3.3989,147.06,147.01,32.61]
[1724945856547,3.3989,147.06,147.01,5.34]
[1724945856750,3.3989,147.06,146.99,32.61]
[1724945857251,0.04651548,147.04,147.01,3.4469506]
[1724945857951,3.44571548,147.04,147.01,3.4469506]
[1724945858445,3.3994,147.03,147.01,0.0470506]
[1724945858747,0.04651548,147.04,147.01,0.0470506]
[1724945859144,3.3994,147.03,147.01,0.0470506]
[1724945859455,0.04651548,147.04,147.01,0.0470506]
[1724945859651,3.44591548,147.04,147.01,3.4469506]
[1724945860348,3.3995,147.03,147.01,0.0470506]
[1724945861148,0.04651548,147.04,147.01,0.0470506]
[1724945861747,3.3997,147.02,147.01,0.0470506]
[1724945862143,32.65651548,147.04,146.95,5.26]
[1724945862350,32.61,147.04,146.96,3.401]
[1724945862547,32.61,147.04,146.94,6.6323]
[1724945862948,32.61,147.04,146.95,3.4011]
[1724945863158,0.04643036,147.0,146.98,0.04530734]
[1724945863745,3.4005,146.99,146.98,0.04530734]
[1724945863952,0.04643036,147.0,146.92,37.87]
[1724945864153,3.4004,146.99,146.92,37.87]
[1724945864348,3.4004,146.99,146.93,5.26]
[1724945864555,32.61,147.03,146.93,5.26]
[1724945864755,3.4001,147.0,146.92,32.61]
[1724945864950,0.04777762,146.97,146.95,0.05074289]
[1724945865147,0.04777762,146.97,146.96,3.4008]
[1724945867155,3.3995,147.03,146.99,3.4002]
[1724945867653,3.3997,147.02,146.99,3.4002]
[1724945868053,39.2126,147.07,147.0,3.4001]
[1724945868255,3.3995,147.03,146.97,32.61]
[1724945868457,1.3426,147.07,146.99,32.61]
[1724945868755,0.05108483,147.04,146.99,32.65515554]
[1724945869150,0.05108483,147.04,147.03,3.3994]
[1724945869756,0.05108483,147.04,147.02,0.04798982]
[1724945870164,0.05108483,147.04,147.03,3.3994]
[1724945870354,0.05108483,147.04,147.02,0.04798982]
[1724945871658,0.05108483,147.04,147.02,3.44758982]
[1724945871862,0.05108483,147.04,147.02,0.04798982]
[1724945872562,0.05108483,147.04,147.02,3.44748982]
[1724945872758,0.05108483,147.04,147.02,0.04798982]
[1724945872958,0.05108483,147.04,147.03,3.3994]
[1724945873958,0.05108483,147.04,147.02,3.44758982]
[1724945875864,0.05108483,147.04,147.02,0.04798982]
[1724945876266,0.05108483,147.04,147.03,3.3994]
[1724945877065,0.05108483,147.04,147.02,3.44758982]
[1724945879772,0.05108483,147.04,147.02,0.04798982]
[1724945881471,3.3994,147.03,147.02,0.04798982]
[1724945882163,3.3998,147.02,146.96,32.61]
[1724945882364,3.3998,147.02,146.99,3.4003]
[1724945882563,32.61,147.05,146.96,32.61]
[1724945882759,3.4,147.01,146.96,5.26]
[1724945882967,3.4,147.01,146.98,3.4004]
[1724945883172,32.61,147.05,146.96,5.26]
[1724945883467,3.4002,147.0,146.98,0.04911867]
[1724945883861,0.0489393,147.01,146.98,0.04911867]
[1724945884068,0.0489393,147.01,147.0,3.4001]
[1724945887466,0.0489393,147.01,146.98,8.70951867]
[1724945887467,3.4488393,147.01,146.98,8.70951867]
[1724945887670,3.4488393,147.01,146.98,5.30911867]
[1724945887965,0.0489393,147.01,146.98,5.30911867]
[1724945888572,0.0489393,147.01,147.0,3.4001]
[1724945897469,0.0489393,147.01,146.99,3.4002]
[1724945898476,0.0489393,147.01,146.98,0.04911867]
[1724945898873,3.4001,147.0,146.98,0.04911867]
[1724945899278,3.4489393,147.01,146.98,0.04911867]
[1724945899775,3.4489393,147.01,146.98,3.44961867]
[1724945900480,3.4003,147.0,146.98,0.04911867]
[1724945900874,0.0489393,147.01,146.98,0.04911867]
[1724945901583,3.4001,147.0,146.98,0.04911867]
[1724945902383,3.4004,146.99,146.98,0.04911867]
[1724945904088,2.7206393,147.01,146.98,0.04911867]
[1724945904288,1.3850393,147.01,146.98,0.04911867]
[1724945904587,0.0489393,147.01,146.98,0.04911867]
[1724945904785,0.0489393,147.01,147.0,3.4001]
[1724945907592,0.0489393,147.01,147.0,29.5101]
[1724945908294,29.5084,147.08,147.05,3.3989]
[1724945908892,3.3985,147.07,147.0,26.11]
[1724945909388,0.0453367,147.05,147.02,0.04390216]
[1724945910494,0.0453367,147.05,147.03,3.3992]
[1724945910793,0.0453367,147.05,147.02,0.04390216]
[1724945912498,0.0453367,147.05,147.04,3.3992]
[1724945921505,0.0453367,147.05,147.03,3.3994]
[1724945923105,0.0453367,147.05,147.02,0.04390216]
[1724945923106,3.4443367,147.05,147.02,3.44350216]
[1724945924407,0.0453367,147.05,147.03,3.3994]
[1724945925002,3.4443367,147.05,147.03,3.3994]
[1724945925401,0.0453367,147.05,147.03,3.3994]
[1724945926310,3.4444367,147.05,147.02,3.44350216]
[1724945927211,0.0453367,147.05,147.04,3.3992]
[1724945927714,0.0453367,147.05,147.03,3.3993]
[1724945928217,0.0453367,147.05,147.04,3.3992]
[1724945930303,0.0453367,147.05,147.02,3.44350216]
[1724945930715,0.0453367,147.05,147.02,0.04390216]
[1724945931207,0.0453367,147.05,147.04,3.3992]
[1724945933114,0.0453367,147.05,147.04,8.3992]
[1724945933617,0.0453367,147.05,147.04,3.3992]
[1724945933807,0.0453367,147.05,147.04,8.3992]
[1724945934011,0.0453367,147.05,147.04,3.3992]
[1724945934311,0.0453367,147.05,147.04,8.3992]
[1724945934511,0.0453367,147.05,147.04,3.3992]
[1724945934813,0.0453367,147.05,147.04,8.3992]
[1724945935620,0.0453367,147.05,147.04,3.3992]
[1724945935913,0.0453367,147.05,147.04,8.3992]
[1724945937020,0.0453367,147.05,147.04,3.3992]
[1724945937214,0.0453367,147.05,147.04,8.3992]
[1724945937427,0.0453367,147.05,147.04,3.3992]
[1724945937823,0.0453367,147.05,147.04,8.3992]
[1724945939721,0.0453367,147.05,147.04,3.3992]
[1724945943021,3.3975,147.12,147.09,3.3979]
[1724945943328,3.3971,147.13,147.06,26.11]
[1724945943522,26.11,147.15,147.06,26.11]
[1724945943819,2.6832,147.16,147.08,26.11]
[1724945944125,0.05064496,147.13,147.11,0.0452361]
[1724945944622,0.05064496,147.13,147.12,3.3973]
[1724945946123,0.05064496,147.13,147.11,3.48336138]
[1724945946317,0.05064496,147.13,147.11,0.0452361]
[1724945946523,0.05064496,147.13,147.12,3.3973]
[1724945955736,0.05064496,147.13,147.12,13.8373]
[1724945956434,1.3543,147.2,147.12,10.44]
[1724945956732,2.5805,147.21,147.12,10.44]
[1724945956733,2.5805,147.21,147.18,10.44]
[1724945956931,2.5805,147.21,147.18,3.3959]
[1724945957332,5.9758,147.21,147.18,3.3959]
[1724945957527,5.9758,147.21,147.18,3.44423485]
[1724945957528,6.02804481,147.21,147.18,3.44423485]
[1724945958436,2.63274481,147.21,147.19,3.3957]
[1724945958633,2.63274481,147.21,147.18,10.48833485]
[1724945958634,0.05224481,147.21,147.18,10.48833485]
[1724945958835,0.05224481,147.21,147.19,10.44]
[1724945959039,0.05224481,147.21,147.2,3.3955]
[1724945960140,1.3691,147.28,147.25,3.3942]
[1724945960739,3.3935,147.29,147.25,3.3942]
[1724945961248,0.04596166,147.28,147.26,0.04858347]
[1724945962542,3.43976166,147.28,147.26,0.04858347]
[1724945966346,3.3939,147.27,147.26,0.04858347]
[1724945966851,3.3942,147.26,147.23,3.3946]
[1724945967648,3.44418724,147.26,147.23,3.43927677]
[1724945968450,3.44418724,147.26,147.23,0.04467677]
[1724945969057,3.3944,147.25,147.23,0.04467677]
[1724945970049,3.3948,147.23,147.2,3.3954]
[1724945970254,27.3775,147.26,147.2,3.3954]
[1724945970452,3.3949,147.23,147.19,3.3956]
[1724945970656,27.3775,147.26,147.19,3.3956]
[1724945970952,27.3775,147.26,147.18,4.8]
[1724945971146,0.0463222,147.24,147.21,0.04694712]
[1724945971650,3.395,147.23,147.21,0.04694712]
[1724945972454,3.4410222,147.24,147.21,0.04694712]
[1724945972657,0.0463222,147.24,147.21,0.04694712]
[1724945973163,0.0463222,147.24,147.23,3.3948]
[1724945976055,0.0463222,147.24,147.22,3.3949]
[1724945976260,0.0463222,147.24,147.21,0.04694712]
[1724945977254,0.0463222,147.24,147.22,3.3949]
[1724945977757,0.0463222,147.24,147.23,3.3948]
[1724945980357,0.0463222,147.24,147.22,10.42]
[1724945981353,0.0463222,147.24,147.23,3.3948]
[1724945982561,0.0463222,147.24,147.23,6.71932688]
[1724945983162,0.0463222,147.24,147.23,11.43932688]
[1724945984263,1.3508,147.3,147.23,11.43932688]
[1724945984264,1.3508,147.3,147.23,8.04452688]
[1724945984462,1.2565,147.32,147.26,10.42]
[1724945985160,1.2565,147.32,147.28,0.0490575]
[1724945985361,0.04326988,147.3,147.28,0.0490575]
[1724945985766,0.04326988,147.3,147.29,3.3934]
[1724945987265,0.04326988,147.3,147.28,8.1626575]
[1724945987964,0.04326988,147.3,147.28,3.4426575]
[1724945989369,3.43646988,147.3,147.28,3.4426575]
[1724945989862,3.3934,147.29,147.28,0.0490575]
[1724945990264,10.46326988,147.3,147.28,0.0490575]
[1724945990464,13.85656988,147.3,147.28,0.0490575]
[1724945990862,3.43656988,147.3,147.28,0.0490575]
[1724945991563,3.43656988,147.3,147.28,3.4426575]
[1724945993677,0.04326988,147.3,147.28,0.0490575]
[1724945994367,3.43656988,147.3,147.28,3.4425575]
[1724945995059,0.04326988,147.3,147.28,0.0490575]
[1724945995265,10.42,147.29,147.23,10.42]
[1724945995572,10.42,147.26,147.23,3.3946]
[1724945995970,10.42,147.26,147.22,3.43945468]
[1724945995971,1.3046,147.31,147.22,3.43945468]
[1724945996172,10.42,147.27,147.24,3.3945]
[1724945996468,13.86177207,147.27,147.24,3.44067432]
[1724945997962,3.3941,147.26,147.24,3.44067432]
[1724945998475,13.86177207,147.27,147.24,3.44067432]
[1724945998970,3.3952,147.22,147.18,10.42]
[1724945999472,3.3952,147.22,147.19,3.3956]
[1724945999672,3.3956,147.2,147.13,3.7425]
[1724945999969,0.04359122,147.18,147.17,3.396]
[1724946000166,0.04873819,147.19,147.16,0.04872395]
[1724946000472,0.04873819,147.19,147.18,3.396]
[1724946001866,0.04873819,147.19,147.18,13.816]
[1724946002067,0.04873819,147.19,147.18,3.396]
[1724946002967,0.04873819,147.19,147.17,29.4761]
[1724946003270,0.04873819,147.19,147.16,0.04872395]
[1724946003567,0.04873819,147.19,147.16,3.44502395]
[1724946003874,3.396,147.18,147.16,0.04872395]
[1724946004070,0.04873819,147.19,147.16,0.04872395]
[1724946004368,3.396,147.18,147.16,0.04872395]
[1724946004570,0.04873819,147.19,147.16,0.04872395]
[1724946005579,3.396,147.18,147.16,0.04872395]
[1724946005777,0.04873819,147.19,147.16,0.04872395]
[1724946006172,0.04873819,147.19,147.17,3.3962]
[1724946006571,0.04873819,147.19,147.18,3.396]
[1724946007172,0.04873819,147.19,147.16,0.04872395]
[1724946007780,0.04873819,147.19,147.17,3.3961]
[1724946007981,0.04873819,147.19,147.16,0.04872395]
[1724946009076,3.44473819,147.19,147.16,0.04872395]
[1724946009283,0.04873819,147.19,147.16,0.04872395]
[1724946009677,3.396,147.18,147.16,0.04872395]
[1724946009979,0.04873819,147.19,147.16,0.04872395]
[1724946010179,3.3962,147.17,147.16,0.04872395]
[1724946011081,3.3961,147.18,147.16,0.04872395]
[1724946012373,3.3962,147.17,147.16,0.04872395]
[1724946012573,1.40943819,147.19,147.16,0.04872395]
[1724946013180,3.3961,147.18,147.16,0.04872395]
[1724946013380,1.40943819,147.19,147.16,0.04872395]
[1724946013777,3.396,147.18,147.16,3.44512395]
[1724946013981,0.04873819,147.19,147.16,0.04872395]
[1724946014379,3.44453819,147.19,147.16,3.44502395]
[1724946015488,0.04873819,147.19,147.16,0.04872395]
[1724946015886,0.04873819,147.19,147.18,3.396]
[1724946017792,0.04873819,147.19,147.16,30.80872395]
[1724946018589,0.04873819,147.19,147.18,3.396]
[1724946019887,0.04873819,147.19,147.16,30.80872395]
[1724946020085,0.04873819,147.19,147.16,4.72872395]
[1724946020395,0.04873819,147.19,147.16,0.04872395]
[1724946021388,0.04873819,147.19,147.17,3.3961]
[1724946022190,0.04873819,147.19,147.16,0.04872395]
[1724946022893,3.44453819,147.19,147.16,3.44502395]
[1724946023592,0.04873819,147.19,147.16,0.04872395]
[1724946024194,3.44463819,147.19,147.16,3.44512395]
[1724946025195,3.396,147.18,147.16,3.44512395]
[1724946025403,0.04873819,147.19,147.16,3.44512395]
[1724946025589,0.04873819,147.19,147.16,0.04872395]
[1724946025990,1.31673819,147.19,147.16,0.04872395]
[1724946026494,3.3962,147.17,147.16,0.04872395]
[1724946026699,1.268,147.19,147.1,26.08]
[1724946026901,3.3966,147.16,147.1,4.68]
[1724946027091,26.08,147.16,147.09,4.68]
[1724946027296,26.08,147.16,147.09,3.3979]
[1724946027597,26.08,147.17,147.08,26.08]
[1724946027903,0.04478934,147.14,147.11,0.04916779]
[1724946028098,0.04478934,147.14,147.11,3.44656779]
[1724946028397,0.04478934,147.14,147.11,0.04916779]
[1724946028603,3.3972,147.13,147.11,0.04916779]
[1724946028796,0.04478934,147.14,147.11,0.04916779]
[1724946029097,3.3973,147.13,147.11,0.04916779]
[1724946029304,0.04478934,147.14,147.11,0.04916779]
[1724946029994,3.3973,147.13,147.11,0.04916779]
[1724946031402,3.44178934,147.14,147.11,0.04916779]
[1724946031603,0.04478934,147.14,147.11,0.04916779]
[1724946032097,0.04478934,147.14,147.12,3.3972]
[1724946034098,0.04478934,147.14,147.13,3.3971]
[1724946037505,0.04478934,147.14,147.13,29.4771]
[1724946037714,249.08,147.23,147.15,26.08]
[1724946037905,26.08,147.23,147.15,26.08]
[1724946038104,3.3954,147.21,147.18,3.396]
[1724946038402,26.08,147.23,147.15,26.08]
[1724946038403,28.6357,147.25,147.15,26.08]
[1724946038604,3.3949,147.23,147.19,3.3956]
[1724946038811,0.04673338,147.21,147.19,0.04949553]
[1724946039309,3.3955,147.2,147.19,0.04949553]
[1724946040109,3.44213338,147.21,147.19,0.04949553]
[1724946040407,0.04673338,147.21,147.19,0.04949553]
[1724946040602,0.04673338,147.21,147.19,3.44499553]
[1724946041410,3.44213338,147.21,147.19,0.04949553]
[1724946042106,3.3955,147.2,147.19,0.04949553]
[1724946043808,3.44203338,147.21,147.19,3.44509553]
[1724946044305,3.3955,147.2,147.19,0.04949553]
[1724946046720,3.44213338,147.21,147.19,3.44519553]
[1724946047221,3.44213338,147.21,147.19,0.04949553]
[1724946048817,3.3955,147.2,147.19,0.04949553]
[1724946051114,3.44203338,147.21,147.19,3.44519553]
[1724946051315,0.04673338,147.21,147.19,0.04949553]
[1724946051621,0.04673338,147.21,147.2,3.3955]
[1724946055718,0.04673338,147.21,147.19,3.44519553]
[1724946058926,3.44203338,147.21,147.19,3.44519553]
[1724946059522,3.44203338,147.21,147.19,0.04949553]
[1724946059916,0.04673338,147.21,147.19,0.04949553]
[1724946060124,0.04673338,147.21,147.19,3.44509553]
[1724946061024,0.04673338,147.21,147.2,3.3955]
[1724946061230,0.04673338,147.21,147.2,13.8255]
[1724946063146,13.0595,147.29,147.24,3.3946]
[1724946063338,3.3943,147.26,147.24,3.3946]
[1724946063541,13.0595,147.29,147.23,13.8248]
[1724946063736,10.43,147.27,147.23,3.3948]
[1724946063939,2.6295,147.29,147.23,3.3948]
[1724946064137,3.3945,147.25,147.24,0.04623995]
[1724946064350,3.3945,147.25,147.07,18.28469386]
[1724946064351,3.46459214,147.25,147.07,18.28469386]
[1724946064550,3.3959,147.19,147.12,26.07]
[1724946064740,26.07,147.22,147.16,3.3964]
[1724946065049,26.07,147.22,147.12,26.07]
[1724946065050,26.07,147.22,147.14,3.31797147]
[1724946065249,3.3956,147.2,147.12,26.07]
[1724946065442,0.04956604,147.19,147.17,0.05129142]
[1724946065946,3.44536604,147.19,147.17,3.44739142]
[1724946066851,3.396,147.18,147.17,0.05129142]
[1724946067945,3.44536604,147.19,147.17,0.05129142]
[1724946068843,0.04956604,147.19,147.17,3.44749142]
[1724946070247,3.44536604,147.19,147.17,0.05129142]
[1724946070447,0.04956604,147.19,147.17,0.05129142]
[1724946070644,3.396,147.18,147.17,0.05129142]
[1724946071552,26.11956604,147.19,147.09,28.7299]
[1724946071750,26.07,147.17,147.1,4.64]
[1724946071944,26.07,147.17,147.09,4.64]
[1724946072252,27.3382,147.17,147.08,30.71]
[1724946072554,0.04936639,147.14,147.11,0.04790202]
[1724946073252,0.04936639,147.14,147.12,3.3972]
[1724946074549,3.44636639,147.14,147.11,3.44530202]
[1724946075450,0.04936639,147.14,147.12,3.3973]
[1724946075951,3.44626639,147.14,147.11,3.44540202]
[1724946076545,0.04936639,147.14,147.11,0.04790202]
[1724946077654,3.3973,147.12,147.11,0.04790202]
[1724946081556,26.07,147.13,147.07,3.3984]
[1724946082653,0.04852634,147.11,147.09,0.04919]
[1724946083155,0.04852634,147.11,147.1,3.3978]
[1724946083458,0.04852634,147.11,147.09,0.04919]
[1724946084460,3.44622634,147.11,147.09,0.04919]
[1724946085556,3.3978,147.1,147.09,0.04919]
[1724946091657,0.04852634,147.11,147.03,4.64292235]
[1724946091658,3.3986,147.07,147.03,3.39282235]
[1724946091854,3.3986,147.07,147.04,3.399]
[1724946092562,26.07,147.1,147.04,3.399]
[1724946092868,0.04873131,147.08,147.06,0.04564896]
[1724946093159,3.3987,147.07,147.06,0.04564896]
[1724946095457,26.11873131,147.08,147.0,3.4]
[1724946095761,26.07,147.06,146.97,3.31579288]
[1724946096059,3.3998,147.02,146.97,10.44]
[1724946096268,10.44,147.03,146.96,5.8969]
[1724946096460,3.44961137,147.01,146.98,0.04612135]
[1724946096663,0.04961137,147.01,146.98,0.04612135]
[1724946096858,10.44,147.0,146.98,0.04612135]
[1724946097559,13.8402,147.0,146.98,0.04612135]
[1724946098064,3.4002,147.0,146.98,0.04612135]
[1724946098261,0.04961137,147.01,146.98,0.04612135]
[1724946099367,3.44961137,147.01,146.98,3.44662135]
[1724946099562,0.04961137,147.01,146.98,0.04612135]
[1724946099862,3.4004,146.99,146.98,0.04612135]
[1724946100059,0.04961137,147.01,146.98,0.04612135]
[1724946100765,3.4002,147.0,146.98,0.04612135]
[1724946101054,0.04961137,147.01,146.98,0.04612135]
[1724946101272,3.44961137,147.01,146.98,3.44652135]
[1724946101865,3.4002,147.0,146.98,0.04612135]
[1724946102058,0.04961137,147.01,146.98,0.04612135]
[1724946102459,3.4004,146.99,146.98,0.04612135]
[1724946103766,3.401,146.97,146.92,3.32836734]
[1724946103965,3.401,146.97,146.89,27.4393]
[1724946104169,30.72,146.99,146.92,3.402]
[1724946104364,3.401,146.97,146.92,3.31568]
[1724946104565,30.72,146.99,146.89,27.4393]
[1724946104967,0.04528647,146.95,146.93,0.04366989]
[1724946105468,3.44668647,146.95,146.93,0.04366989]
[1724946105867,0.04528647,146.95,146.93,0.04366989]
[1724946106473,3.44668647,146.95,146.93,0.04366989]
[1724946106875,0.04528647,146.95,146.93,0.04366989]
[1724946107168,3.4015,146.94,146.93,0.04366989]
[1724946108066,0.04528647,146.95,146.93,0.04366989]
[1724946108866,3.4015,146.94,146.93,0.04366989]
[1724946110277,3.4021,146.92,146.89,3.4026]
[1724946110567,3.44384483,146.95,146.86,1.2784]
[1724946110568,29.51855836,146.95,146.86,1.2784]
[1724946110977,3.4021,146.92,146.89,3.4025]
[1724946111168,29.51855836,146.95,146.85,26.12]
[1724946111372,3.4026,146.9,146.89,0.0475253]
[1724946111568,30.76881399,146.91,146.78,2.6389]
[1724946111768,26.12,146.88,146.8,26.12]
[1724946112166,26.12,146.88,146.78,5.9189]
[1724946112373,3.39039447,146.89,146.78,4.76950314]
[1724946112374,26.12,146.86,146.78,4.76950314]
[1724946112673,0.04704563,146.83,146.81,0.04565012]
[1724946114071,26.16704563,146.83,146.81,0.04565012]
[1724946114269,3.4043,146.82,146.81,0.04565012]
[1724946115778,30.76704563,146.83,146.76,3.4056]
[1724946115968,26.12,146.8,146.76,3.4056]
[1724946116168,26.12,146.8,146.75,3.4058]
[1724946116371,26.12,146.78,146.7,4.6]
[1724946116576,26.12,146.78,146.69,4.6]
[1724946116876,0.05118443,146.75,146.72,0.03141601]
[1724946117173,0.05118443,146.75,146.72,3.43791601]
[1724946117377,0.05118443,146.75,146.72,0.03141601]
[1724946117879,0.05118443,146.75,146.74,3.4061]
[1724946119075,3.4044,146.82,146.78,3.4052]
[1724946119274,4.6,146.83,146.74,27.4034]
[1724946119479,3.4046,146.81,146.77,3.4052]
[1724946120177,4.6,146.83,146.74,27.4034]
[1724946120178,0.04623938,146.8,146.78,0.0499455]
[1724946121271,0.04623938,146.8,146.79,3.405]
[1724946121475,0.04623938,146.8,146.78,0.0499455]
[1724946121871,0.04623938,146.8,146.79,3.405]
[1724946122678,4.6,146.86,146.83,3.4041]
[1724946122872,4.6,146.86,146.78,26.12]
[1724946123079,30.72,146.86,146.79,3.4048]
[1724946123378,26.12,146.84,146.75,27.4474]
[1724946123582,0.04342613,146.81,146.8,3.4046]
[1724946124381,26.12,146.88,146.85,3.4035]
[1724946124583,4.6,146.89,146.85,3.4035]
[1724946124885,30.72,146.89,146.79,26.12]
[1724946125076,30.72,146.89,146.83,3.4039]
[1724946125380,3.4033,146.87,146.83,3.4039]
[1724946125583,0.04649725,146.87,146.85,0.04580919]
[1724946125784,0.04649725,146.87,146.85,0.05107827]
[1724946126878,3.44969725,146.87,146.85,0.05107827]
[1724946127077,0.04649725,146.87,146.85,0.05107827]
[1724946127586,0.04649725,146.87,146.86,3.4034]
[1724946128376,30.74,146.94,146.85,26.17107827]
[1724946128577,6.0535,146.95,146.87,26.12]
[1724946128778,30.74,146.96,146.87,26.12]
[1724946128976,26.12,146.96,146.87,26.12]
[1724946129380,0.05022562,146.93,146.9,0.04610659]
[1724946129585,0.05022562,146.93,146.9,3.44840659]
[1724946130185,0.05022562,146.93,146.9,0.04610659]
[1724946130491,26.12,146.92,146.9,0.04610659]
[1724946130992,0.05022562,146.93,146.9,0.04610659]
[1724946131379,0.05022562,146.93,146.92,3.402]
[1724946131585,0.05022562,146.93,146.9,0.04610659]
[1724946131982,0.05022562,146.93,146.92,3.402]
[1724946136099,26.12,146.99,146.96,3.401]
[1724946136302,27.4178,147.01,146.92,26.12]
[1724946136794,3.4004,146.99,146.95,3.4011]
[1724946137004,26.12,146.99,146.9,33.3719]
[1724946137295,0.04308145,146.96,146.93,0.05085598]
[1724946137499,3.44418145,146.96,146.93,0.05085598]
[1724946137694,26.12,146.95,146.93,0.05085598]
[1724946137995,29.5215,146.94,146.93,0.05085598]
[1724946138295,26.12,146.94,146.85,4.62]
[1724946138493,26.12,146.94,146.9,3.4024]
[1724946138691,2.6259,146.95,146.85,4.62]
[1724946138692,2.6259,146.95,146.85,30.74]
[1724946138991,28.7459,146.95,146.85,30.74]
[1724946139199,0.05233173,146.91,146.9,3.4024]
[1724946139386,0.05230317,146.92,146.89,0.05138299]
[1724946139900,0.05230317,146.92,146.91,3.4021]
[1724946141201,3.45430317,146.92,146.89,0.05138299]
[1724946141397,0.05230317,146.92,146.89,0.05138299]
[1724946142100,26.17230317,146.92,146.89,0.05138299]
[1724946142294,3.4024,146.9,146.89,0.05138299]
[1724946142990,29.5224,146.9,146.89,0.05138299]
[1724946143497,3.4024,146.9,146.89,0.05138299]
[1724946144994,29.5223,146.91,146.89,0.05138299]
[1724946145198,0.05230317,146.92,146.89,0.05138299]
[1724946146704,3.4024,146.91,146.89,0.05138299]
[1724946147099,0.05230317,146.92,146.89,0.05138299]
[1724946147397,3.4023,146.91,146.89,0.05138299]
[1724946147794,3.45440317,146.92,146.89,0.05138299]
[1724946148196,0.05230317,146.92,146.89,0.05138299]
[1724946148600,3.4022,146.91,146.89,0.05138299]
[1724946148807,0.05230317,146.92,146.89,0.05138299]
[1724946149003,26.12,146.91,146.89,0.05138299]
[1724946149302,3.4024,146.9,146.89,0.05138299]
[1724946151903,29.5223,146.91,146.89,0.05138299]
[1724946152095,3.4023,146.91,146.89,0.05138299]
[1724946152604,0.05230317,146.92,146.89,0.05138299]
[1724946153005,3.4024,146.9,146.89,0.05138299]
[1724946153401,0.05230317,146.92,146.89,0.05138299]
[1724946153599,3.4024,146.9,146.89,0.05138299]
[1724946156002,26.12,146.91,146.8,26.12]
[1724946156201,26.12,146.88,146.82,4.62]
[1724946156612,29.523,146.88,146.82,4.62]
[1724946156910,26.12,146.88,146.84,3.4037]
[1724946157212,0.04815701,146.86,146.84,3.45446077]
[1724946158211,0.04815701,146.86,146.85,3.4036]
[1724946161207,0.04815701,146.86,146.84,0.05076077]
[1724946161512,0.04815701,146.86,146.85,3.4036]
[1724946167217,0.04815701,146.86,146.84,3.45446077]
[1724946167811,3.45155701,146.86,146.84,0.05076077]
[1724946168014,0.04815701,146.86,146.84,0.05076077]
[1724946168411,0.04815701,146.86,146.84,3.45456077]
[1724946168612,0.04815701,146.86,146.84,0.05076077]
[1724946169019,0.04815701,146.86,146.85,3.4036]
[1724946175220,3.402,146.92,146.89,3.4026]
[1724946175617,3.402,146.92,146.84,26.12]
[1724946175816,3.402,146.92,146.88,3.4027]
[1724946176131,0.04328454,146.91,146.89,0.04372591]
[1724946176316,0.04328454,146.91,146.89,3.44632591]
[1724946176718,3.44568454,146.91,146.89,0.04372591]
[1724946176918,0.04328454,146.91,146.89,0.04372591]
[1724946177413,3.4024,146.9,146.89,0.04372591]
[1724946177722,0.04328454,146.91,146.89,0.04372591]
[1724946178320,3.44548454,146.91,146.89,0.04372591]
[1724946178525,0.04328454,146.91,146.89,0.04372591]
[1724946178722,0.04328454,146.91,146.89,29.49027512]
[1724946179429,0.04328454,146.91,146.9,3.4024]
[1724946179728,1.3365,146.99,146.9,26.12]
[1724946180025,1.3365,146.99,146.91,4.62]
[1724946180323,3.4007,146.98,146.91,4.62]
[1724946180525,3.4007,146.98,146.94,3.4013]
[1724946180718,0.04459542,146.96,146.93,26.16557288]
[1724946181119,0.04459542,146.96,146.93,0.04557288]
[1724946181315,26.16459542,146.96,146.93,0.04557288]
[1724946181716,0.04459542,146.96,146.93,0.04557288]
[1724946182126,0.04459542,146.96,146.94,3.4014]
[1724946182429,0.04459542,146.96,146.93,0.04557288]
[1724946183424,3.44569542,146.96,146.93,3.44717288]
[1724946184218,3.4015,146.94,146.93,0.04557288]
[1724946184431,0.04459542,146.96,146.93,0.04557288]
[1724946185429,0.04459542,146.96,146.93,3.44717288]
[1724946186327,0.04459542,146.96,146.93,0.04557288]